bitfinex/quotes_SOLUSD_20251207
["timestamp","ask_amount","ask_price","bid_price","bid_amount"]
[1765150513073,0.1,131.81,131.8,2.25128181]
[1765150513284,0.82,131.81,131.8,2.25128181]
[1765150513863,0.1,131.81,131.8,10.52853522]
[1765150515095,0.1,131.81,131.8,12.77981703]
[1765150515604,0.1,131.83,131.8,12.77981703]
[1765150515806,0.1,131.83,131.82,2.25128181]
[1765150519517,0.1,131.83,131.82,2.94128181]
[1765150519809,0.1,131.83,131.82,2.25128181]
[1765150520020,0.72,131.89,131.82,10.52738407]
[1765150520205,8.30150113,131.9,131.88,2.25128181]
[1765150520409,8.30150113,131.9,131.89,2.25128181]
[1765150521787,27.25525397,131.9,131.84,8.28475248]
[1765150521997,0.72,131.89,131.87,2.25128181]
[1765150523612,7.58265089,131.88,131.83,2.25128181]
[1765150523817,9.8339327,131.88,131.83,2.25128181]
[1765150523998,16.308864,131.86,131.81,2.25128181]
[1765150524204,8.38,131.85,131.81,2.25128181]
[1765150524404,9.1,131.85,131.78,7.58821382]
[1765150524601,0.72,131.84,131.8,2.25128181]
[1765150525312,0.72,131.84,131.81,2.25128181]
[1765150525622,7.58552681,131.83,131.81,2.25128181]
[1765150526017,0.72,131.82,131.81,2.25128181]
[1765150527114,0.72,131.82,131.8,2.25128181]
[1765150527689,0.72,131.82,131.81,2.25128181]
[1765150528208,16.68511595,131.84,131.81,2.25128181]
[1765150528405,16.68511595,131.84,131.83,2.25128181]
[1765150530293,16.68511595,131.84,131.82,2.25128181]
[1765150530499,0.72,131.83,131.82,2.25128181]
[1765150530699,0.72,131.83,131.81,2.25128181]
[1765150531622,8.30592638,131.83,131.81,2.25128181]
[1765150531807,0.72,131.82,131.81,2.25128181]
[1765150532708,8.30610226,131.82,131.8,2.25128181]
[1765150535012,0.72,131.81,131.8,2.25128181]
[1765150535207,0.72,131.81,131.79,2.25128181]
[1765150535414,0.72,131.81,131.78,2.25128181]
[1765150535820,0.72,131.82,131.8,2.25128181]
[1765150537625,7.58667779,131.81,131.8,2.25128181]
[1765150538129,8.30667779,131.81,131.8,2.25128181]
[1765150540145,0.72,131.84,131.8,2.95128181]
[1765150540441,0.72,131.83,131.82,2.25128181]
[1765150540745,0.72,131.83,131.81,2.25128181]
[1765150541407,0.72,131.83,131.82,2.25128181]
[1765150542834,8.30552681,131.83,131.82,2.25128181]
[1765150546750,8.30552681,131.83,131.81,2.25128181]
[1765150548129,8.30552681,131.83,131.76,97.48202682]
[1765150548130,16.308864,131.81,131.76,2.25128181]
[1765150548336,8.38,131.8,131.77,2.25128181]
[1765150548640,9.1,131.8,131.78,2.25128181]
[1765150549037,0.72,131.79,131.78,2.25128181]
[1765150549615,0.72,131.79,131.76,2.25128181]
[1765150550139,7.58840491,131.78,131.76,2.25128181]
[1765150550520,8.30840491,131.78,131.76,2.25128181]
[1765150551244,7.58840491,131.78,131.76,2.25128181]
[1765150551625,7.58840491,131.78,131.77,2.25128181]
[1765150551961,8.28840491,131.78,131.77,2.25128181]
[1765150552256,8.28840491,131.78,131.76,2.25128181]
[1765150552460,7.58840491,131.78,131.76,2.25128181]
[1765150553240,8.28840491,131.78,131.76,2.25128181]
[1765150554627,7.58840491,131.78,131.76,2.25128181]
[1765150555156,7.58840491,131.78,131.77,2.25128181]
[1765150555563,8.28840491,131.78,131.77,2.25128181]
[1765150555755,8.28840491,131.78,131.76,2.25128181]
[1765150556248,7.58840491,131.78,131.74,62.2]
[1765150556555,8.28840491,131.78,131.76,2.25128181]
[1765150557562,8.28840491,131.78,131.77,2.25128181]
[1765150557872,8.28840491,131.78,131.76,2.25128181]
[1765150560780,7.58840491,131.78,131.76,3.51986539]
[1765150560983,0.71,131.77,131.74,3.51986539]
[1765150561302,8.38,131.76,131.73,3.51986539]
[1765150561477,0.71,131.75,131.73,3.51986539]
[1765150561864,8.38,131.76,131.74,3.51986539]
[1765150562188,8.38,131.76,131.75,3.51986539]
[1765150562493,19.67838335,131.8,131.75,4.19986539]
[1765150562676,0.71,131.79,131.77,3.51986539]
[1765150562874,28.05838335,131.8,131.77,3.51986539]
[1765150563206,8.29782912,131.79,131.77,3.51986539]
[1765150563984,7.58782912,131.79,131.77,3.51986539]
[1765150564168,8.29840491,131.78,131.77,3.51986539]
[1765150564573,7.58840491,131.78,131.77,3.51986539]
[1765150565292,0.71,131.78,131.77,3.51986539]
[1765150566294,7.58782912,131.79,131.77,3.51986539]
[1765150566490,8.29782912,131.79,131.77,3.51986539]
[1765150568884,7.58782912,131.79,131.78,3.51986539]
[1765150570376,16.67751408,131.8,131.78,3.51986539]
[1765150570578,16.67751408,131.8,131.74,84.69534507]
[1765150570579,0.71,131.83,131.79,4.19986539]
[1765150570789,0.71,131.83,131.81,3.51986539]
[1765150571591,0.71,131.83,131.79,0.68]
[1765150571592,8.29571686,131.83,131.82,3.51986539]
[1765150573891,8.38,131.84,131.82,3.51986539]
[1765150574093,8.38,131.84,131.83,4.19986539]
[1765150574381,7.58397155,131.86,131.83,4.19986539]
[1765150574598,8.29397155,131.86,131.85,3.51986539]
[1765150574826,7.58397155,131.86,131.85,3.51986539]
[1765150575514,8.29397155,131.86,131.85,3.51986539]
[1765150579610,7.58397155,131.86,131.85,3.51986539]
[1765150579804,7.5832725,131.87,131.85,3.51986539]
[1765150580007,0.71,131.86,131.8,7.58707196]
[1765150580199,0.71,131.86,131.82,3.51986539]
[1765150581827,7.58437618,131.85,131.82,3.51986539]
[1765150582631,8.38,131.84,131.82,3.51986539]
[1765150582817,9.08,131.84,131.82,3.51986539]
[1765150583131,0.7,131.83,131.82,3.51986539]
[1765150583505,8.28552681,131.83,131.82,3.51986539]
[1765150584826,15.96519579,131.84,131.82,3.51986539]
[1765150585014,19.65829721,131.87,131.83,4.22986539]
[1765150585330,19.65829721,131.87,131.86,3.51986539]
[1765150585331,15.9632259,131.87,131.86,3.51986539]
[1765150585515,16.6632259,131.87,131.86,3.51986539]
[1765150585717,15.9632259,131.87,131.86,3.51986539]
[1765150585922,16.6632259,131.87,131.86,3.51986539]
[1765150587624,8.38,131.89,131.86,4.22986539]
[1765150587820,0.7,131.88,131.85,3.51986539]
[1765150588532,7.5832259,131.87,131.85,3.51986539]
[1765150588933,0.7,131.86,131.85,3.51986539]
[1765150589132,0.7,131.86,131.84,3.51986539]
[1765150591633,8.28409016,131.86,131.84,3.51986539]
[1765150594743,0.7,131.85,131.83,3.51986539]
[1765150599151,8.28440247,131.85,131.83,3.51986539]
[1765150600252,7.58405462,131.86,131.83,3.51986539]
[1765150600552,8.28405462,131.86,131.83,3.51986539]
[1765150600728,0.7,131.85,131.83,3.51986539]
[1765150601123,7.58405462,131.86,131.83,3.51986539]
[1765150601327,18.9588622,131.87,131.83,3.51986539]
[1765150601526,0.7,131.86,131.83,3.51986539]
[1765150602523,0.7,131.86,131.81,11.10629943]
[1765150602745,0.7,131.86,131.81,3.51986539]
[1765150602951,0.7,131.86,131.81,4.22986539]
[1765150603133,0.7,131.86,131.82,3.51986539]
[1765150603633,7.58437618,131.85,131.82,3.51986539]
[1765150603820,7.58437618,131.85,131.81,4.22986539]
[1765150604024,0.7,131.84,131.8,11.10687871]
[1765150604247,8.38,131.85,131.82,7.58608014]
[1765150604450,7.58404076,131.86,131.84,3.51986539]
[1765150604752,0.7,131.85,131.82,3.51986539]
[1765150605051,0.7,131.85,131.81,11.10634023]
[1765150605232,0.7,131.85,131.81,11.81634023]
[1765150605746,7.58495145,131.84,131.81,4.22986539]
[1765150605941,7.58495145,131.84,131.8,3.51986539]
[1765150606122,0.7,131.83,131.8,3.51986539]
[1765150606918,0.7,131.83,131.79,3.51986539]
[1765150606919,9.08,131.83,131.79,3.51986539]
[1765150607126,12.59986539,131.83,131.77,3.51986539]
[1765150607358,0.7,131.82,131.77,3.51986539]
[1765150608220,7.58667779,131.81,131.77,3.51986539]
[1765150608622,0.7,131.8,131.77,3.51986539]
[1765150610547,7.58667779,131.81,131.78,3.51986539]
[1765150610930,0.72,131.8,131.78,3.51986539]
[1765150611937,8.30726143,131.8,131.78,3.51986539]
[1765150612139,0.72,131.83,131.79,0.71]
[1765150612338,0.72,131.83,131.8,3.51986539]
[1765150612339,16.68552681,131.83,131.8,3.51986539]
[1765150612730,0.72,131.82,131.8,3.51986539]
[1765150613232,0.72,131.82,131.79,4.22986539]
[1765150613438,0.72,131.82,131.8,3.51986539]
[1765150613638,0.72,131.82,131.79,4.22986539]
[1765150613851,15.96576446,131.83,131.79,11.81764545]
[1765150614054,16.68576446,131.83,131.8,3.51986539]
[1765150614241,0.72,131.82,131.8,3.51986539]
[1765150614752,0.72,131.82,131.79,4.22986539]
[1765150615151,0.72,131.82,131.79,3.51986539]
[1765150615737,8.30628103,131.82,131.79,3.51986539]
[1765150616142,0.72,131.81,131.78,3.51986539]
[1765150616345,0.72,131.81,131.78,4.22986539]
[1765150617034,8.30628103,131.82,131.78,3.51986539]
[1765150617236,8.30628103,131.82,131.78,4.22986539]
[1765150617950,8.30628103,131.82,131.79,3.51986539]
[1765150618350,0.72,131.81,131.78,3.51986539]
[1765150618547,0.72,131.81,131.78,4.22986539]
[1765150619254,8.30677851,131.81,131.78,4.22986539]
[1765150619635,7.58677851,131.81,131.78,4.22986539]
[1765150619966,8.30677851,131.81,131.78,4.22986539]
[1765150620639,9.1,131.83,131.8,3.51986539]
[1765150620864,0.72,131.82,131.79,3.51986539]
[1765150621166,0.72,131.82,131.77,11.10877006]
[1765150621550,0.72,131.82,131.77,11.76877006]
[1765150621737,0.72,131.82,131.76,11.10933396]
[1765150622061,4.23986539,131.82,131.76,11.10933396]
[1765150622577,13.00981031,131.81,131.75,3.51986539]
[1765150622758,26.55538694,131.8,131.74,2.25309024]
[1765150623059,9.06,131.79,131.74,2.25309024]
[1765150623560,0.68,131.78,131.74,2.91309024]
[1765150624462,7.58898079,131.77,131.74,2.91309024]
[1765150624965,8.38,131.79,131.75,2.91309024]
[1765150625159,9.06,131.79,131.76,2.25309024]
[1765150625465,8.38,131.79,131.77,2.25309024]
[1765150625664,0.68,131.82,131.78,2.25309024]
[1765150625876,7.58676709,131.81,131.78,2.91309024]
[1765150626063,7.58676709,131.81,131.79,2.25309024]
[1765150626242,0.68,131.8,131.79,2.25309024]
[1765150626567,0.68,131.81,131.79,2.25309024]
[1765150627553,7.58610226,131.82,131.79,2.91309024]
[1765150627762,32.95461063,131.83,131.8,2.25309024]
[1765150627956,0.68,131.82,131.79,2.91309024]
[1765150628272,0.68,131.82,131.79,2.25309024]
[1765150628453,0.68,131.82,131.8,2.25309024]
[1765150628639,16.64574663,131.83,131.8,2.25309024]
[1765150629453,16.64574663,131.83,131.8,2.91309024]
[1765150629769,0.68,131.82,131.8,2.25309024]
[1765150630861,16.64574663,131.83,131.8,2.25309024]
[1765150631061,0.68,131.82,131.8,2.25309024]
[1765150631364,8.80994492,131.81,131.76,2.25309024]
[1765150631570,0.68,131.8,131.75,2.25309024]
[1765150631756,8.38,131.79,131.74,2.25309024]
[1765150632148,0.68,131.78,131.74,2.25309024]
[1765150633368,8.38,131.79,131.74,2.25309024]
[1765150633369,8.38,131.79,131.76,2.25309024]
[1765150633565,9.06,131.79,131.76,2.25309024]
[1765150633946,0.68,131.78,131.74,2.25309024]
[1765150634975,7.58898079,131.77,131.74,2.25309024]
[1765150635183,8.26860777,131.78,131.75,0.66]
[1765150635576,8.26860777,131.78,131.74,2.25309024]
[1765150635877,8.26860777,131.78,131.74,2.91309024]
[1765150636397,0.68,131.77,131.74,2.91309024]
[1765150638581,8.26902854,131.77,131.74,2.25309024]
[1765150638790,8.26902854,131.77,131.73,2.25309024]
[1765150639092,8.26963735,131.76,131.73,2.25309024]
[1765150639507,0.68,131.75,131.73,2.25309024]
[1765150639670,8.26963735,131.76,131.73,2.25309024]
[1765150639983,8.26963735,131.76,131.73,2.91309024]
[1765150640961,0.71,131.75,131.71,8.29243793]
[1765150641205,0.71,131.75,131.7,2.25309024]
[1765150641863,9.09,131.75,131.7,2.25309024]
[1765150642287,0.71,131.74,131.69,2.45309024]
[1765150642478,0.71,131.74,131.7,2.25309024]
[1765150642983,7.5912852,131.73,131.7,2.25309024]
[1765150643190,7.5912852,131.73,131.69,3.15309024]
[1765150643392,0.71,131.73,131.7,2.95309024]
[1765150645372,8.30137063,131.73,131.7,2.25309024]
[1765150646467,7.59137063,131.73,131.7,2.25309024]
[1765150646667,0.71,131.72,131.7,2.25309024]
[1765150647173,0.71,131.72,131.69,2.45309024]
[1765150647787,8.30206435,131.72,131.69,2.45309024]
[1765150648307,0.71,131.71,131.69,0.2]
[1765150649604,7.59301442,131.7,131.69,0.2]
[1765150650515,8.3026781,131.71,131.69,0.2]
[1765150651519,0.71,131.7,131.69,0.2]
[1765150652497,19.68965381,131.72,131.69,0.2]
[1765150652705,0.71,131.71,131.69,0.2]
[1765150653013,0.71,131.72,131.69,3.15309024]
[1765150653399,0.71,131.72,131.69,10.7465273]
[1765150653618,0.71,131.73,131.7,2.25309024]
[1765150654029,0.71,131.72,131.7,2.25309024]
[1765150654622,7.59070897,131.74,131.7,9.84609469]
[1765150654829,0.71,131.73,131.7,10.54609469]
[1765150655004,0.71,131.73,131.7,9.84609469]
[1765150655713,0.71,131.73,131.7,10.54609469]
[1765150655909,7.59070897,131.74,131.72,2.25309024]
[1765150656128,8.30070897,131.74,131.71,2.95309024]
[1765150657134,8.30006761,131.76,131.72,2.25309024]
[1765150657340,0.71,131.75,131.72,2.95309024]
[1765150657711,0.71,131.75,131.72,2.25309024]
[1765150658118,0.71,131.75,131.72,2.95309024]
[1765150659213,8.30028624,131.75,131.72,2.25309024]
[1765150660041,7.59028624,131.75,131.72,2.25309024]
[1765150660354,0.71,131.74,131.7,2.25309024]
[1765150660653,7.5912852,131.73,131.69,2.45309024]
[1765150660942,15.9712852,131.73,131.69,0.2]
[1765150661240,0.71,131.72,131.69,0.2]
[1765150661822,7.59243793,131.71,131.69,3.15309024]
[1765150662128,0.71,131.72,131.69,3.15309024]
[1765150662129,8.30196543,131.72,131.69,2.45309024]
[1765150662331,0.71,131.71,131.69,2.45309024]
[1765150665748,8.3024561,131.71,131.69,2.45309024]
[1765150667150,8.3024561,131.71,131.69,0.2]
[1765150667151,0.71,131.7,131.69,0.2]
[1765150668255,8.30301442,131.7,131.69,0.2]
[1765150668647,7.59301442,131.7,131.69,0.2]
[1765150669530,7.59200432,131.72,131.69,3.15309024]
[1765150669743,8.30200432,131.72,131.69,3.15309024]
[1765150669939,8.30200432,131.72,131.69,0.2]
[1765150669940,8.80994492,131.7,131.69,0.2]
[1765150670454,19.36604958,131.7,131.69,0.2]
[1765150671125,17.11295934,131.7,131.69,0.2]
[1765150672046,8.30301442,131.7,131.69,0.2]
[1765150675055,10.55610466,131.7,131.69,0.2]
[1765150675932,8.30301442,131.7,131.69,0.2]
[1765150676550,10.55610466,131.7,131.69,0.2]
[1765150676849,8.30301442,131.7,131.69,0.2]
[1765150678130,10.55610466,131.7,131.69,0.2]
[1765150681133,19.36604958,131.7,131.69,1e-08]
[1765150681460,8.80994492,131.66,131.65,0.2]
[1765150681758,19.44303516,131.66,131.65,0.2]
[1765150681949,20.16303516,131.66,131.65,0.2]
[1765150682465,27.75835644,131.66,131.65,0.2]
[1765150682633,25.5052662,131.66,131.65,0.2]
[1765150682833,29.03430773,131.66,131.65,0.2]
[1765150684353,25.5052662,131.66,131.65,0.2]
[1765150685557,29.03430773,131.66,131.65,0.2]
[1765150686560,29.03430773,131.66,131.65,1e-08]
[1765150712103,32.07833192,131.66,131.65,1e-08]
[1765150716911,29.03430773,131.66,131.65,1e-08]
[1765150722007,28.31430773,131.66,131.65,1e-08]
[1765150722212,7.59532128,131.66,131.65,0.69000001]
[1765150724811,7.59532128,131.66,131.65,1e-08]
[1765150725006,25.11880892,131.63,131.61,0.2]
[1765150725204,25.11880892,131.63,131.55,0.2]
[1765150725205,25.11880892,131.59,131.55,0.2]
[1765150725404,25.11880892,131.55,131.52,0.69]
[1765150725607,37.02785045,131.55,131.52,0.69]
[1765150725914,41.10048128,131.55,131.54,0.89]
[1765150726700,44.62952281,131.55,131.54,0.2]
[1765150726918,41.10048128,131.55,131.54,0.89]
[1765150727420,44.62952281,131.55,131.54,0.89]
[1765150728502,41.10048128,131.55,131.54,0.89]
[1765150729099,44.62952281,131.55,131.54,0.89]
[1765150729500,44.62952281,131.55,131.54,0.2]
[1765150732110,44.62952281,131.55,131.52,0.69]
[1765150732111,64.34370372,131.55,131.51,0.92]
[1765150732309,64.34370372,131.55,131.51,1e-08]
[1765150732310,28.64785045,131.52,131.51,1e-08]
[1765150732514,8.80994492,131.48,131.47,0.2]
[1765150732704,20.73898645,131.48,131.47,0.2]
[1765150733712,28.34470595,131.48,131.46,0.2]
[1765150733897,13.04898645,131.47,131.46,0.2]
[1765150734100,25.11880892,131.47,131.46,0.92]
[1765150734418,8.4,131.47,131.46,0.92]
[1765150735302,17.20994492,131.47,131.46,0.92]
[1765150736004,41.12510693,131.47,131.46,0.92]
[1765150737300,16.00629801,131.47,131.46,0.92]
[1765150740211,41.12510693,131.47,131.46,0.92]
[1765150740824,32.31516201,131.47,131.46,0.92]
[1765150741029,16.00629801,131.47,131.46,0.92]
[1765150741213,24.81624293,131.47,131.46,0.2]
[1765150741537,48.04102949,131.47,131.44,0.2]
[1765150741743,28.64785045,131.45,131.44,0.2]
[1765150742239,29.32785045,131.45,131.44,0.2]
[1765150742426,28.64785045,131.45,131.44,0.2]
[1765150743312,36.25530575,131.45,131.44,0.2]
[1765150743517,36.93530575,131.45,131.44,0.2]
[1765150744117,36.93530575,131.45,131.44,1e-08]
[1765150744428,25.11880892,131.42,131.41,1e-08]
[1765150744637,37.04785045,131.42,131.41,1e-08]
[1765150744835,37.04785045,131.42,131.37,0.2]
[1765150744836,9.48994492,131.41,131.37,0.2]
[1765150745042,8.80994492,131.38,131.37,0.2]
[1765150745240,17.22994492,131.38,131.37,0.2]
[1765150745541,24.84145352,131.38,131.37,0.2]
[1765150746625,24.84145352,131.38,131.37,0.92]
[1765150746845,24.84145352,131.38,131.37,0.2]
[1765150747058,24.84145352,131.38,131.37,0.92]
[1765150747428,24.84145352,131.38,131.37,0.2]
[1765150748760,8.42,131.38,131.37,0.92]
[1765150749128,16.0315086,131.38,131.37,0.92]
[1765150749654,31.59476331,131.38,131.37,0.2]
[1765150750447,50.62353481,131.38,131.34,0.2]
[1765150750748,50.62353481,131.38,131.29,0.72]
[1765150750749,8.80994492,131.34,131.29,0.72]
[1765150750964,8.80994492,131.34,131.19,38.11220223]
[1765150750965,22.38217379,131.31,131.28,0.72]
[1765150751150,8.42,131.3,131.28,0.72]
[1765150751651,7.61672633,131.29,131.28,0.72]
[1765150752352,8.42,131.3,131.28,6.79330979]
[1765150752543,8.42,131.3,131.28,0.72]
[1765150752749,8.42,131.3,131.29,0.72]
[1765150753441,16.03614623,131.3,131.29,0.72]
[1765150754251,8.80994492,131.29,131.25,0.72]
[1765150754553,8.80994492,131.29,131.26,0.72]
[1765150755632,7.61730652,131.28,131.26,0.72]
[1765150755957,8.42,131.27,131.26,0.72]
[1765150756134,17.22994492,131.27,131.26,0.72]
[1765150756330,17.22994492,131.27,131.21,7.62127176]
[1765150756331,17.90994492,131.27,131.21,7.62127176]
[1765150756536,8.80994492,131.26,131.21,0.72]
[1765150756752,14.88325471,131.26,131.22,0.72]
[1765150757665,8.80994492,131.26,131.22,6.79330979]
[1765150757841,8.42,131.25,131.23,6.07330979]
[1765150758044,8.42,131.25,131.23,0.72]
[1765150758245,8.42,131.25,131.24,0.72]
[1765150758850,8.42,131.26,131.24,6.79330979]
[1765150759063,8.42,131.26,131.24,14.41243338]
[1765150759253,8.42,131.26,131.25,0.72]
[1765150759455,7.61614623,131.3,131.25,6.79330979]
[1765150759643,8.42,131.29,131.26,0.72]
[1765150760544,8.42,131.29,131.26,6.79330979]
[1765150760967,8.42,131.29,131.27,0.66]
[1765150761448,8.80994492,131.32,131.28,6.07330979]
[1765150761642,8.42,131.31,131.28,6.07330979]
[1765150761845,8.42,131.31,131.29,0.66]
[1765150762239,8.42,131.31,131.29,6.73330979]
[1765150762664,8.42,131.31,131.3,0.66]
[1765150762969,6.79330979,131.36,131.3,0.66]
[1765150762970,8.42,131.32,131.3,14.34945134]
[1765150763162,8.42,131.34,131.31,6.07330979]
[1765150763364,8.42,131.34,131.31,6.73330979]
[1765150763677,8.42,131.34,131.32,0.66]
[1765150764286,16.03395658,131.34,131.29,7.61665471]
[1765150764583,16.03395658,131.34,131.32,0.66]
[1765150764784,7.61228107,131.37,131.33,6.07330979]
[1765150764991,7.61228107,131.37,131.32,8.27490534]
[1765150764992,7.61228107,131.37,131.35,6.07330979]
[1765150765280,7.61228107,131.37,131.34,6.07330979]
[1765150765454,26.64250105,131.37,131.31,7.6154746]
[1765150765785,0.72,131.36,131.31,6.07330979]
[1765150766479,7.61324704,131.35,131.31,6.07330979]
[1765150766773,7.61287316,131.36,131.33,6.07330979]
[1765150766974,7.61230053,131.37,131.33,6.07330979]
[1765150768677,8.33230053,131.37,131.33,6.07330979]
[1765150768877,7.61230053,131.37,131.33,6.07330979]
[1765150769047,7.61230053,131.37,131.34,6.07330979]
[1765150769448,7.61230053,131.37,131.33,6.07330979]
[1765150771478,8.33230053,131.37,131.33,6.07330979]
[1765150771662,7.61230053,131.37,131.34,6.07330979]
[1765150771868,8.80994492,131.4,131.36,6.07330979]
[1765150772064,16.42029499,131.4,131.37,6.07330979]
[1765150772684,7.61035007,131.4,131.37,6.07330979]
[1765150773060,8.33035007,131.4,131.37,6.07330979]
[1765150773273,7.61035007,131.4,131.37,6.07330979]
[1765150774358,16.02981302,131.41,131.38,6.07330979]
[1765150775770,16.02981302,131.41,131.39,6.07330979]
[1765150777170,16.02981302,131.41,131.38,6.07330979]
[1765150777793,16.74981302,131.41,131.38,6.07330979]
[1765150779002,16.02981302,131.41,131.38,6.07330979]
[1765150780081,0.72,131.4,131.37,6.07330979]
[1765150780285,35.77424038,131.41,131.37,6.07330979]
[1765150780506,35.77424038,131.41,131.38,6.07330979]
[1765150780719,35.77424038,131.41,131.38,2.26574772]
[1765150780901,16.02981302,131.41,131.39,2.26574772]
[1765150781092,8.42,131.41,131.4,2.26574772]
[1765150782114,16.74977094,131.41,131.38,2.26574772]
[1765150783292,16.02977094,131.41,131.39,2.26574772]
[1765150783511,17.028864,131.45,131.4,2.26574772]
[1765150783710,8.42,131.44,131.41,2.26574772]
[1765150784094,9.14,131.44,131.41,2.26574772]
[1765150784694,16.74803408,131.44,131.41,2.26574772]
[1765150784893,16.74803408,131.44,131.4,2.26574772]
[1765150789123,16.68803408,131.44,131.4,2.26574772]
[1765150791328,16.20803408,131.44,131.4,2.26574772]
[1765150792122,15.52803408,131.44,131.41,2.26574772]
[1765150792507,16.20803408,131.44,131.41,2.26574772]
[1765150792706,7.60769275,131.45,131.43,2.26574772]
[1765150792918,16.02769275,131.45,131.43,2.26574772]
[1765150793341,8.42,131.45,131.44,2.26574772]
[1765150794538,8.42,131.45,131.4,26.63605527]
[1765150794539,16.70757787,131.45,131.41,2.26574772]
[1765150794841,16.70757787,131.45,131.42,2.26574772]
[1765150796734,16.02757787,131.45,131.42,2.26574772]
[1765150796915,16.70757787,131.45,131.42,2.26574772]
[1765150801336,0.7,131.44,131.41,2.26574772]
[1765150801540,0.7,131.44,131.39,16.308864]
[1765150801541,0.7,131.44,131.39,2.26574772]
[1765150801856,0.7,131.44,131.39,9.87665423]
[1765150802043,0.7,131.44,131.4,2.26574772]
[1765150802430,0.7,131.44,131.39,9.87665423]
[1765150803260,7.60861294,131.43,131.38,7.6115086]
[1765150803434,7.60861294,131.43,131.39,2.26574772]
[1765150803630,8.30861294,131.43,131.4,2.26574772]
[1765150804555,0.7,131.42,131.4,2.26574772]
[1765150805838,7.60803408,131.44,131.4,2.26574772]
[1765150806043,8.30883268,131.43,131.4,2.26574772]
[1765150806654,0.7,131.42,131.4,3.53922292]
[1765150807156,0.7,131.42,131.38,3.53922292]
[1765150808934,8.30972733,131.42,131.38,3.53922292]
[1765150809339,0.7,131.41,131.38,3.53922292]
[1765150809944,0.7,131.41,131.37,3.53922292]
[1765150810253,9.1,131.41,131.35,3.53922292]
[1765150810652,0.7,131.4,131.35,3.53922292]
[1765150811160,7.61092929,131.39,131.35,3.53922292]
[1765150811655,8.31092929,131.39,131.35,3.53922292]
[1765150811840,0.7,131.38,131.35,3.53922292]
[1765150812037,8.4,131.37,131.33,3.53922292]
[1765150812452,0.7,131.36,131.32,3.53922292]
[1765150812961,0.7,131.36,131.33,3.53922292]
[1765150813142,8.31311919,131.36,131.32,3.53922292]
[1765150814239,0.7,131.35,131.33,3.53922292]
[1765150814440,7.61311919,131.36,131.33,3.53922292]
[1765150814746,16.01223025,131.37,131.34,3.53922292]
[1765150814958,0.7,131.42,131.36,3.53922292]
[1765150815255,52.05698328,131.44,131.4,3.53922292]
[1765150815471,35.74811928,131.44,131.4,3.53922292]
[1765150815674,0.7,131.43,131.4,3.53922292]
[1765150816062,0.7,131.43,131.39,3.53922292]
[1765150816263,7.6091919,131.42,131.39,3.53922292]
[1765150816475,0.7,131.41,131.39,3.53922292]
[1765150817169,0.7,131.41,131.38,3.53922292]
[1765150817378,8.42,131.4,131.37,3.53922292]
[1765150817759,0.7,131.39,131.37,3.53922292]
[1765150818375,8.31106756,131.39,131.37,3.53922292]
[1765150818979,0.7,131.38,131.32,3.53922292]
[1765150819784,0.7,131.38,131.32,11.15386184]
[1765150820480,7.61208799,131.37,131.32,3.53922292]
[1765150820686,8.80994492,131.34,131.29,9.40550074]
[1765150821080,0.66,131.33,131.28,17.02266641]
[1765150822184,0.66,131.33,131.28,9.40550074]
[1765150822976,8.27496453,131.33,131.28,17.02272966]
[1765150823376,0.66,131.32,131.28,17.02272966]
[1765150824271,8.80994492,131.31,131.27,0.1]
[1765150824473,0.66,131.3,131.27,0.1]
[1765150825375,0.66,131.3,131.27,9.50550074]
[1765150826072,18.21544566,131.29,131.27,0.1]
[1765150826277,17.08725144,131.28,131.27,0.1]
[1765150827093,8.27730652,131.28,131.27,0.1]
[1765150828067,0.66,131.28,131.27,0.1]
[1765150828272,0.66,131.3,131.27,17.12338753]
[1765150829278,18.21544566,131.29,131.27,0.1]
[1765150829492,8.44,131.28,131.27,0.1]
[1765150829689,9.1,131.28,131.27,0.1]
[1765150832794,8.44,131.28,131.27,9.50550074]
[1765150834297,16.71632179,131.3,131.27,9.50550074]
[1765150834497,0.66,131.29,131.27,9.50550074]